bitfinex/quotes_BTCUSD_20251011
["timestamp","ask_amount","ask_price","bid_price","bid_amount"]
[1760148660034,0.0461,112100.0,112090.0,0.00058011]
[1760148660249,0.11649187,112100.0,112090.0,0.00058011]
[1760148660575,0.05440187,112100.0,112090.0,0.00058011]
[1760148660986,0.11649187,112100.0,112090.0,0.00058011]
[1760148661195,0.30866958,112100.0,112090.0,0.00058011]
[1760148662065,0.64866958,112100.0,112090.0,0.00058011]
[1760148662733,0.55010958,112100.0,112090.0,0.00058011]
[1760148662941,0.64866958,112100.0,112090.0,0.00058011]
[1760148663668,0.10191958,112100.0,112090.0,0.00058011]
[1760148663877,0.00830187,112100.0,112090.0,0.00058011]
[1760148664093,0.09361771,112100.0,112090.0,0.00058011]
[1760148664300,0.44191958,112100.0,112090.0,0.00058011]
[1760148664528,0.34830187,112100.0,112090.0,0.00058011]
[1760148664965,0.64866958,112100.0,112090.0,0.00058011]
[1760148665176,0.64036771,112100.0,112090.0,0.00058011]
[1760148665591,0.54180771,112100.0,112090.0,0.00058011]
[1760148665792,0.64036771,112100.0,112090.0,0.00058011]
[1760148666585,0.84893174,112100.0,112090.0,1.1e-07]
[1760148667665,0.97393172,112100.0,112090.0,1.1e-07]
[1760148667871,0.09361771,112040.0,112030.0,0.02878742]
[1760148668082,1.02459626,112040.0,112030.0,0.005]
[1760148668285,1.08748626,112040.0,112030.0,0.00943898]
[1760148668429,0.97849626,112040.0,112030.0,0.00943898]
[1760148668660,0.98684201,112040.0,112030.0,0.00943898]
[1760148669120,1.32684201,112040.0,112030.0,0.00994252]
[1760148669937,1.53122201,112040.0,112030.0,0.00994252]
[1760148671628,0.09361771,112020.0,111980.0,0.0477677]
[1760148671801,0.98684201,112020.0,111980.0,0.04791866]
[1760148672001,1.03194201,112020.0,111980.0,0.04791866]
[1760148672435,1.03194201,112020.0,111990.0,0.00082458]
[1760148672635,1.03194201,112020.0,111990.0,0.00228649]
[1760148672822,0.98684201,112020.0,111990.0,0.00228649]
[1760148673354,0.98682415,112020.0,111990.0,0.00228649]
[1760148673754,0.98682415,112020.0,111980.0,0.00243745]
[1760148673983,0.34,112010.0,111980.0,0.00015096]
[1760148674221,0.39342789,112010.0,111980.0,0.00015096]
[1760148674397,0.09361771,112000.0,111980.0,0.00015096]
[1760148674630,0.97849626,112000.0,111980.0,0.00015096]
[1760148674855,1.02827803,112000.0,111980.0,0.00015096]
[1760148675094,0.34,111990.0,111980.0,0.00015096]
[1760148675330,0.44799,111990.0,111980.0,0.00015096]
[1760148675536,0.44799,111990.0,111980.0,0.00115096]
[1760148676008,0.44799,111990.0,111980.0,0.00015096]
[1760148676827,0.34,111990.0,111980.0,0.00115096]
[1760148677382,0.00468177,112000.0,111980.0,0.00115096]
[1760148677594,0.00468177,112000.0,111990.0,0.03247513]
[1760148678411,0.00095674,112040.0,111990.0,0.03247513]
[1760148678627,0.00563739,112040.0,112010.0,0.0301519]
[1760148679939,0.00095674,112040.0,112010.0,0.0301519]
[1760148680148,0.00095674,112040.0,112010.0,0.0311519]
[1760148681039,0.00095674,112040.0,112010.0,0.001]
[1760148681254,0.09457445,112040.0,112010.0,0.001]
[1760148681457,0.00095674,112040.0,111990.0,0.0301519]
[1760148681682,0.09457445,112040.0,111980.0,0.40376485]
[1760148681890,0.102872,112040.0,112010.0,0.002]
[1760148682099,0.09457445,112040.0,111990.0,0.0301519]
[1760148682314,0.1028715,112040.0,111990.0,0.0301519]
[1760148682523,0.1479715,112040.0,111990.0,0.0301519]
[1760148682734,0.1479715,112040.0,111980.0,0.40376485]
[1760148682974,0.1479715,112040.0,111990.0,0.0301519]
[1760148683389,0.14797374,112040.0,111990.0,0.0301519]
[1760148683593,0.10287374,112040.0,111990.0,0.0301519]
[1760148683816,0.34925603,112040.0,112020.0,0.00058065]
[1760148684250,0.44287374,112040.0,112020.0,0.00058065]
[1760148684456,0.34925603,112040.0,112020.0,0.00058065]
[1760148685074,0.34975854,112040.0,112020.0,0.00058065]
[1760148685273,0.00975854,112040.0,112020.0,0.00058065]
[1760148685482,0.00145925,112040.0,112020.0,0.00386057]
[1760148685686,0.00145925,112040.0,112030.0,0.0301519]
[1760148686294,0.00145925,112040.0,112020.0,0.00058065]
[1760148686701,0.00145925,112040.0,112030.0,0.0301519]
[1760148686907,0.00145925,112040.0,112030.0,0.03178096]
[1760148688164,0.00145925,112040.0,112020.0,0.03236161]
[1760148688798,0.00145925,112040.0,112030.0,0.001]
[1760148689001,0.00145925,112040.0,112020.0,0.03236161]
[1760148689204,0.00145925,112040.0,112030.0,0.03178096]
[1760148690044,0.00145925,112040.0,112020.0,0.00058065]
[1760148690045,0.43361771,112030.0,112020.0,0.00058065]
[1760148690249,0.44194267,112030.0,112020.0,0.00058065]
[1760148690449,0.34832617,112030.0,112020.0,0.00058065]
[1760148691396,0.44194388,112030.0,112020.0,0.00058065]
[1760148691598,0.48704388,112030.0,112020.0,0.00058065]
[1760148691831,0.54993388,112030.0,112020.0,0.00058065]
[1760148692045,0.48704388,112030.0,112020.0,0.00058065]
[1760148692361,0.4585987,112030.0,112020.0,0.00058065]
[1760148692931,0.6629787,112030.0,112020.0,0.00058065]
[1760148693351,0.09361771,112010.0,111960.0,0.41043184]
[1760148693549,0.89320472,112010.0,111970.0,0.0301519]
[1760148693860,0.98682243,112010.0,112000.0,0.00116156]
[1760148694908,1.03192243,112010.0,112000.0,0.00116156]
[1760148695139,0.98682243,112010.0,112000.0,0.00116156]
[1760148695319,0.89320472,112010.0,112000.0,0.00116156]
[1760148695485,0.89320472,112010.0,112000.0,0.00216156]
[1760148695699,0.89320472,112010.0,112000.0,0.00116156]
[1760148696888,0.90988957,112010.0,112000.0,0.00116156]
[1760148697086,0.98682243,112010.0,112000.0,0.00116156]
[1760148697290,1.00350767,112010.0,112000.0,0.00116156]
[1760148697912,0.89320472,112010.0,112000.0,0.00216156]
[1760148698112,0.98682243,112010.0,112000.0,0.00116156]
[1760148698546,1.00350817,112010.0,112000.0,0.00116156]
[1760148698762,1.11336817,112010.0,112000.0,0.00116156]
[1760148699029,1.21027817,112010.0,112000.0,0.00116156]
[1760148700348,1.05303817,112010.0,112000.0,0.00116156]
[1760148700561,1.00350817,112010.0,112000.0,0.00116156]
[1760148700982,0.89320472,112010.0,111960.0,0.2335934]
[1760148701191,0.89320472,112010.0,111950.0,0.0301519]
[1760148702044,0.90988181,112010.0,111950.0,0.0301519]
[1760148702254,0.90988181,112010.0,111960.0,0.00048886]
[1760148702676,0.89320472,112010.0,111960.0,0.00048886]
[1760148702886,0.96363656,112010.0,111950.0,0.0301519]
[1760148703100,0.98031344,112010.0,111950.0,0.0301519]
[1760148703329,0.98031336,112010.0,111960.0,0.06391345]
[1760148703537,1.07393107,112010.0,111960.0,0.06391345]
[1760148703744,1.07393107,112010.0,111980.0,0.0301519]
[1760148703954,1.07393107,112010.0,111960.0,0.06391345]
[1760148704161,1.12346107,112010.0,111950.0,0.09406535]
[1760148704366,1.00349923,112010.0,111970.0,0.0301519]
[1760148704799,0.02500297,112010.0,111970.0,0.0480319]
[1760148705009,0.00832617,112010.0,111970.0,0.11194535]
[1760148705220,1.07488664,112030.0,111970.0,0.11194535]
[1760148705650,1.07392979,112030.0,111970.0,0.11194535]
[1760148705859,0.07043184,112010.0,111970.0,0.11194535]
[1760148706103,1.07392979,112010.0,111970.0,0.0311519]
[1760148706720,1.00349795,112010.0,111970.0,0.0311519]
[1760148706930,1.05302795,112010.0,111970.0,0.0311519]
[1760148707180,1.00349795,112010.0,111970.0,0.0311519]
[1760148707396,1.00349795,112010.0,111970.0,0.0301519]
[1760148707633,1.00349795,112010.0,111970.0,0.0311519]
[1760148707890,1.00351564,112010.0,111970.0,0.0301519]
[1760148708507,0.90989793,112010.0,111970.0,0.0301519]
[1760148708924,1.00351564,112010.0,111970.0,0.0301519]
[1760148709985,0.09361771,111990.0,111960.0,0.06391345]
[1760148710190,0.09361771,111990.0,111940.0,0.06431345]
[1760148710191,0.34,111980.0,111940.0,0.06431345]
[1760148710413,0.36501938,111980.0,111970.0,0.001]
[1760148711015,0.02501938,111980.0,111970.0,0.0311519]
[1760148711253,1.22583562,112010.0,111980.0,0.0301519]
[1760148711456,0.91088698,112010.0,111980.0,0.09406535]
[1760148712622,0.36600843,112010.0,111980.0,0.09406535]
[1760148712841,0.36601116,112010.0,111980.0,0.09406535]
[1760148713260,0.36601116,112010.0,111990.0,0.0478995]
[1760148713910,0.43361771,112000.0,111990.0,0.0478995]
[1760148714115,0.45867282,112000.0,111980.0,0.0478995]
[1760148714339,0.45867282,112000.0,111980.0,0.0488995]
[1760148714546,0.45867282,112000.0,111980.0,0.0478995]
[1760148714774,0.35670273,112000.0,111990.0,0.001]
[1760148714974,0.45032044,112000.0,111980.0,0.0478995]
[1760148715381,0.45032044,112000.0,111980.0,0.0488995]
[1760148715576,0.45032044,112000.0,111970.0,0.06406441]
[1760148715806,0.01670273,112000.0,111970.0,0.04790233]
[1760148716012,0.00095707,112010.0,111950.0,0.07002111]
[1760148716277,0.00095707,112010.0,111950.0,0.07017111]
[1760148716945,0.00095707,112010.0,111990.0,0.00058089]
[1760148717150,0.00095707,112010.0,111990.0,0.00158089]
[1760148717353,0.52911417,112020.0,111990.0,0.00058089]
[1760148717354,0.18911417,112020.0,111990.0,0.00058089]
[1760148717554,0.18912356,112020.0,111990.0,0.00058089]
[1760148717999,0.04572,112010.0,111990.0,0.00058089]
[1760148718215,0.02507401,112010.0,111990.0,0.00158089]
[1760148718421,0.00835258,112010.0,111990.0,0.00158089]
[1760148718624,1.11972211,112020.0,111990.0,0.00058089]
[1760148719037,0.09361771,112000.0,111990.0,0.00058089]
[1760148719262,1.00357027,112000.0,111990.0,0.00058089]
[1760148719959,1.04929027,112000.0,111990.0,0.00158089]
[1760148720166,1.00357027,112000.0,111990.0,0.00058089]
[1760148720493,1.00357027,112000.0,111990.0,0.00158089]
[1760148720699,1.00357027,112000.0,111990.0,0.00058089]
[1760148721325,0.01961027,112000.0,111990.0,0.00058089]
[1760148721746,0.00288884,112000.0,111990.0,0.00058089]
[1760148721956,1.04096076,112040.0,111990.0,0.03073279]
[1760148722161,0.34,112030.0,111990.0,0.03073279]
[1760148722338,0.0167445,112030.0,111990.0,0.03073279]
[1760148722569,1.04146337,112040.0,111990.0,0.00058089]
[1760148723021,0.20976955,112030.0,111990.0,0.00058089]
[1760148723227,0.0167445,112030.0,112000.0,0.00781]
[1760148723433,0.03421022,112030.0,112000.0,0.00781]
[1760148723845,0.04572,112020.0,111990.0,0.0325814]
[1760148724051,0.01746572,112010.0,111990.0,0.00058089]
[1760148724463,0.07993022,112010.0,111990.0,0.00058089]
[1760148724942,0.04572,112000.0,111990.0,0.00058089]
[1760148725200,0.0167445,112000.0,111990.0,0.00058089]
[1760148725422,0.0167445,112000.0,111990.0,0.01307089]
[1760148725670,0.0167445,112000.0,111990.0,0.00058089]
[1760148725671,0.3567445,112000.0,111990.0,0.00058089]
[1760148726053,0.4024645,112000.0,111990.0,0.00058089]
[1760148726713,0.5587045,112000.0,111990.0,0.00058089]
[1760148727751,0.3567445,112000.0,111990.0,0.01307089]
[1760148728379,0.5602945,112000.0,111990.0,0.00058089]
[1760148728559,0.4639545,112000.0,111990.0,0.00058089]
[1760148728806,0.4027745,112000.0,111990.0,0.00058089]
[1760148729012,0.4639545,112000.0,111990.0,0.00058089]
[1760148729849,0.4027745,112000.0,111990.0,0.00058089]
[1760148730057,0.5602945,112000.0,111990.0,0.00058089]
[1760148730469,0.01746572,111990.0,111950.0,0.0301519]
[1760148730681,0.94837427,111990.0,111950.0,0.0303019]
[1760148730900,1.06145877,111990.0,111950.0,0.00015]
[1760148731108,0.01746572,111970.0,111950.0,0.00015]
[1760148731312,0.90234427,111970.0,111950.0,0.00015]
[1760148731516,0.91908877,111970.0,111960.0,0.00270048]
[1760148731723,0.90161113,111970.0,111960.0,0.00270048]
[1760148732534,0.94837427,111990.0,111960.0,0.00270048]
[1760148732738,0.96510257,111990.0,111950.0,0.00015]
[1760148732946,0.96510257,111990.0,111980.0,0.00153816]
[1760148733356,1.03464561,111990.0,111980.0,0.00153816]
[1760148733782,0.90996989,111990.0,111980.0,0.00153816]
[1760148735461,0.90996786,111990.0,111980.0,0.00153816]
[1760148735655,0.89324159,111990.0,111980.0,0.00153816]
[1760148735863,0.89324154,111990.0,111980.0,0.00153816]
[1760148736256,1.23324154,111990.0,111980.0,0.00153816]
[1760148736466,1.23324154,111990.0,111980.0,0.00253816]
[1760148736667,0.89324154,111990.0,111980.0,0.00253816]
[1760148736889,0.00836299,111990.0,111980.0,0.00253816]
[1760148737094,0.92801249,112010.0,111980.0,0.00253816]
[1760148737347,0.92801249,112010.0,111980.0,0.001]
[1760148737758,0.91054677,112010.0,111980.0,0.001]
[1760148737938,0.00894383,112010.0,111990.0,0.07814385]
[1760148738140,0.00058084,112010.0,111990.0,0.07814385]
[1760148738351,0.00058084,112010.0,112000.0,0.00089344]
[1760148738907,0.00058084,112010.0,111990.0,0.07814385]
[1760148739569,0.00058084,112010.0,112000.0,0.001]
[1760148740342,0.00058084,112010.0,112000.0,0.04799195]
[1760148740537,0.00058084,112010.0,111990.0,0.07914385]
[1760148741626,0.00058084,112010.0,112000.0,0.04799195]
[1760148741777,0.00058084,112010.0,111990.0,0.07914385]
[1760148741984,0.00058084,112010.0,112000.0,0.04799195]
[1760148742325,0.00058084,112010.0,111990.0,0.0301519]
[1760148742326,0.00058084,112010.0,111990.0,0.07814385]
[1760148742520,0.00058084,112010.0,111990.0,0.079101]
[1760148742902,0.00058084,112010.0,111990.0,0.0489491]
[1760148744115,0.00058084,112010.0,112000.0,0.04799195]
[1760148744850,0.00525805,112010.0,112000.0,0.07814385]
[1760148745052,0.00525805,112010.0,112000.0,0.0301519]
[1760148745218,0.00525805,112010.0,112000.0,0.03158438]
[1760148745564,0.00525805,112010.0,112000.0,0.11161483]
[1760148746374,0.00525805,112010.0,112000.0,0.11251974]
[1760148746576,0.00525805,112010.0,112000.0,0.11351974]
[1760148746776,0.00525805,112010.0,112000.0,0.11251974]
[1760148746900,0.00525805,112010.0,112000.0,0.11351974]
[1760148747313,0.00525805,112010.0,112000.0,0.11118235]
[1760148749268,0.00525805,112010.0,112000.0,0.0311519]
[1760148749522,0.00525805,112010.0,112000.0,0.09479172]
[1760148749921,0.00525805,112010.0,112000.0,0.0311519]
[1760148750084,0.00525805,112010.0,112000.0,0.09477739]
[1760148750858,0.00525805,112010.0,112000.0,0.43477739]
[1760148751367,0.00058084,112010.0,112000.0,0.43477739]
[1760148754866,0.00058084,112010.0,112000.0,0.43377739]
[1760148755074,0.00058084,112010.0,112000.0,0.43577739]
[1760148758156,0.00058084,112010.0,112000.0,0.09577739]
[1760148758368,0.00058084,112010.0,112000.0,0.07787349]
[1760148758576,0.00058084,112010.0,112000.0,0.07887349]
[1760148759875,0.00058084,112010.0,112000.0,0.09477739]
[1760148760091,0.00058084,112010.0,112000.0,0.0311519]
[1760148760739,0.00058084,112010.0,112000.0,0.09572221]
[1760148761174,0.00058084,112010.0,112000.0,0.43572221]
[1760148761390,0.00058084,112010.0,112000.0,0.57618233]
[1760148761609,0.07510905,112050.0,112010.0,0.0480319]
[1760148761819,0.07093445,112050.0,112040.0,0.07784912]
[1760148762044,0.07093445,112050.0,112040.0,0.09598116]
[1760148762275,0.07093445,112050.0,112040.0,0.11188024]
[1760148762520,0.00050261,112050.0,112040.0,0.1116282]
[1760148762736,0.00050261,112050.0,112040.0,0.11244085]
[1760148763173,0.00050261,112050.0,112040.0,0.1116282]
[1760148763378,0.00050261,112050.0,112040.0,0.0301519]
[1760148763612,0.00050261,112050.0,112040.0,0.09456065]
[1760148764258,0.00050261,112050.0,112040.0,0.0937482]
[1760148764458,0.00050261,112050.0,112040.0,0.0321519]
[1760148764663,0.00050261,112050.0,112040.0,0.0301519]
[1760148765092,0.00050261,112050.0,112040.0,0.0311519]
[1760148765294,0.00050261,112050.0,112040.0,0.0301519]
[1760148765505,0.00050261,112050.0,112040.0,0.07786738]
[1760148765717,0.00050261,112050.0,112040.0,0.07886738]
[1760148765920,0.00050261,112050.0,112040.0,0.0311519]
[1760148766133,0.00050261,112050.0,112040.0,0.07887293]
[1760148766340,0.00050261,112050.0,112040.0,0.0311519]
[1760148767809,0.00050261,112050.0,112040.0,0.0947482]
[1760148767986,0.00050261,112050.0,112040.0,0.0311519]
[1760148768227,0.00282473,112050.0,112040.0,0.0311519]
[1760148768436,0.00282473,112050.0,112040.0,0.07891333]
[1760148768642,0.01116554,112050.0,112040.0,0.07891333]
[1760148768823,0.01116554,112050.0,112040.0,0.11076127]
[1760148769538,0.01116554,112050.0,112040.0,0.06299984]
[1760148769971,0.01116554,112050.0,112040.0,0.03284794]
[1760148770175,0.01116554,112050.0,112040.0,0.03184794]
[1760148770587,0.15736572,112080.0,112040.0,0.14122]
[1760148770791,1.04239501,112080.0,112040.0,0.09215]
[1760148770991,1.04707222,112080.0,112050.0,0.04907]
[1760148771202,1.04707222,112080.0,112060.0,0.02453]
[1760148771414,0.11357,112070.0,112060.0,0.02453]
[1760148771831,0.0477,112070.0,112060.0,0.02453]
[1760148772048,0.20937,112070.0,112060.0,0.02453]
[1760148772265,0.11357,112070.0,112060.0,0.02453]
[1760148772695,0.3877,112070.0,112060.0,0.02453]
[1760148772908,0.45357,112070.0,112060.0,0.02453]
[1760148773118,0.54937,112070.0,112040.0,0.10544794]
[1760148773329,0.54937,112070.0,112020.0,0.07043184]
[1760148773542,0.45357,112070.0,112020.0,0.07043184]
[1760148773793,0.34,112070.0,112020.0,0.07043184]
[1760148774004,0.34,112070.0,112030.0,0.00220523]
[1760148774898,0.34,112070.0,112020.0,0.13402814]
[1760148775414,0.34,112070.0,112030.0,0.0301519]
[1760148775868,0.8897065,112080.0,112030.0,0.3701519]
[1760148775869,0.00482795,112080.0,112030.0,0.3701519]
[1760148776082,0.00482795,112080.0,112040.0,0.0635963]
[1760148776300,0.00015074,112080.0,112060.0,0.0301519]
[1760148776724,0.00015074,112080.0,112060.0,0.0937482]
[1760148776948,0.00015074,112080.0,112060.0,0.0301519]
[1760148777154,0.00116065,112070.0,112060.0,0.0301519]
[1760148778370,0.00116065,112070.0,112060.0,0.0311519]
[1760148779541,0.00116065,112070.0,112060.0,0.0301519]
[1760148779945,0.00116065,112070.0,112060.0,0.0311519]
[1760148780148,0.00116065,112070.0,112060.0,0.0301519]
[1760148780510,0.00116065,112070.0,112060.0,0.0311519]
[1760148780706,0.00116065,112070.0,112060.0,0.0301519]
[1760148780866,0.00116065,112070.0,112040.0,0.40455297]
[1760148781079,0.04785074,112080.0,112060.0,0.001]
[1760148781275,0.0477,112070.0,112060.0,0.001]
[1760148781490,0.11357,112070.0,112060.0,0.001]
[1760148781894,0.20937,112070.0,112060.0,0.001]
[1760148782477,0.2177176,112070.0,112060.0,0.001]
[1760148782688,0.01746572,112060.0,112040.0,0.00095667]
[1760148782900,0.0477,112050.0,112040.0,0.00195667]
[1760148783252,0.01746572,112030.0,111990.0,0.13402814]
[1760148783383,0.0560476,112030.0,111990.0,0.13402814]
[1760148783587,0.09021104,112030.0,111990.0,0.13402814]
[1760148783868,0.09021104,112030.0,111990.0,0.0635963]
[1760148784089,0.0477,112020.0,111980.0,0.0635963]
[1760148784307,0.95762387,112020.0,111980.0,0.0635963]
[1760148784510,0.95762387,112020.0,111980.0,0.06409891]
[1760148784891,0.40516572,112010.0,111980.0,0.00050261]
[1760148785233,0.52601104,112010.0,111980.0,0.00050261]
[1760148785435,0.43021104,112010.0,111980.0,0.00050261]
[1760148785634,0.36504532,112010.0,111980.0,0.00050261]
[1760148786050,0.36504532,112010.0,111980.0,0.03065451]
[1760148786481,0.02504532,112010.0,111980.0,0.03065451]
[1760148786865,0.02504532,112010.0,111980.0,0.00050261]
[1760148787736,0.0083476,112010.0,111980.0,0.00050261]
[1760148787944,0.95762387,112020.0,111980.0,0.03065451]
[1760148788142,0.95762387,112020.0,111940.0,0.25902812]
[1760148788284,0.95762387,112020.0,111940.0,0.25917812]
[1760148788691,0.90992387,112020.0,111960.0,0.07043184]
[1760148788895,0.0083476,112020.0,111960.0,0.16359629]
[1760148789113,0.90987739,112040.0,111960.0,0.16359629]
[1760148789311,0.07043184,112030.0,111960.0,0.16359629]
[1760148789514,0.09543068,112030.0,111960.0,0.16359629]
[1760148789749,0.0083476,112030.0,111980.0,0.16359629]
[1760148789956,0.09542553,112050.0,111980.0,0.18859628]
[1760148790168,0.09542553,112050.0,111990.0,0.3701519]
[1760148790393,0.0083476,112050.0,111990.0,0.55874818]
[1760148790562,0.98030387,112070.0,111990.0,0.55874818]
[1760148790760,0.09542532,112070.0,112010.0,0.0301519]
[1760148790966,0.09592643,112070.0,112010.0,0.0301519]
[1760148791163,0.43592643,112070.0,112010.0,0.0301519]
[1760148791365,0.07928236,112070.0,112010.0,0.0301519]
[1760148792005,0.00095663,112050.0,112030.0,0.0301519]
[1760148792843,0.00095663,112050.0,112020.0,0.34]
[1760148793045,0.00095663,112050.0,112020.0,0.0301519]
[1760148793254,0.00095663,112050.0,112030.0,0.001]
[1760148793462,0.00095663,112050.0,112020.0,0.0475699]
[1760148793892,0.00095663,112050.0,112030.0,0.0311519]
[1760148794106,0.00095663,112050.0,112030.0,0.0301519]
[1760148794316,0.00095663,112050.0,112030.0,0.0311519]
[1760148794887,0.015,112040.0,112030.0,0.0787218]
[1760148795496,0.015,112040.0,112030.0,0.0777218]
[1760148796504,0.015,112040.0,112030.0,0.0321519]
[1760148796680,0.015,112040.0,112030.0,0.04753133]
[1760148797120,0.015,112040.0,112030.0,0.0501119]
[1760148797322,0.015,112040.0,112030.0,0.00258057]
[1760148797539,0.015,112040.0,112030.0,0.16617686]
[1760148797775,0.015,112040.0,112030.0,0.19117685]
[1760148797944,0.015,112040.0,112030.0,0.12758055]
[1760148798652,0.015,112040.0,112030.0,0.12558055]
[1760148798830,0.015,112040.0,112030.0,0.49573245]
[1760148798982,0.015,112040.0,112030.0,0.49773245]
[1760148799406,0.015,112040.0,112030.0,0.49573245]
[1760148799606,0.015,112040.0,112030.0,0.49873245]
[1760148800163,0.015,112040.0,112030.0,0.39873246]
[1760148800335,0.015,112040.0,112030.0,0.49873245]
[1760148801897,0.015,112040.0,112030.0,0.39873246]
[1760148802097,0.015,112040.0,112030.0,0.56200686]
[1760148802232,0.015,112040.0,112030.0,0.49873245]
[1760148802435,0.015,112040.0,112030.0,0.4619918]
[1760148802818,0.015,112040.0,112030.0,0.39873246]
[1760148803226,0.015,112040.0,112030.0,0.49873245]
[1760148803452,0.015,112040.0,112030.0,0.53698685]
[1760148803688,0.015,112040.0,112030.0,0.47988685]
[1760148803885,0.015,112040.0,112030.0,0.55488685]
[1760148804118,0.015,112040.0,112030.0,0.45488686]
[1760148804302,0.015,112040.0,112030.0,0.42473496]
[1760148804688,0.015,112040.0,112030.0,0.45488686]
[1760148804889,0.015,112040.0,112030.0,0.40683496]
[1760148805089,0.015,112040.0,112030.0,0.05106733]
[1760148805509,0.015,112040.0,112030.0,0.04806733]
[1760148805949,0.015,112040.0,112030.0,0.03224635]
[1760148806290,0.015,112040.0,112030.0,0.03424635]
[1760148806508,0.015,112040.0,112030.0,0.08173311]
[1760148806723,0.015,112040.0,112030.0,0.07821923]
[1760148806940,0.015,112040.0,112030.0,0.03273247]
[1760148807131,0.015,112040.0,112030.0,0.05148347]
[1760148807296,0.015,112040.0,112030.0,0.11473786]
[1760148807707,0.015,112040.0,112030.0,0.11388686]
[1760148807910,0.015,112040.0,112030.0,0.00258057]
[1760148808115,0.015,112040.0,112030.0,0.05010922]
[1760148808297,0.015,112040.0,112030.0,0.04810922]
[1760148808666,0.015,112040.0,112030.0,0.05010922]
[1760148808870,0.015,112040.0,112030.0,0.04810922]
[1760148809080,0.015,112040.0,112030.0,0.04910922]
[1760148809303,0.015,112040.0,112030.0,0.07926112]
[1760148809505,0.015,112040.0,112030.0,0.09498686]
[1760148809930,0.015,112040.0,112030.0,0.03289379]
[1760148810382,0.015,112040.0,112030.0,0.45238916]
[1760148810590,0.015,112040.0,112030.0,0.45122784]
[1760148810993,0.015,112040.0,112030.0,0.47622783]
[1760148811333,0.95531039,112110.0,112030.0,0.47622783]
[1760148811334,0.0002,112120.0,112040.0,0.00892538]
[1760148811541,0.00035082,112120.0,112110.0,0.39515189]
[1760148811765,0.0002,112160.0,112150.0,0.3701519]
[1760148811963,0.0002,112160.0,112150.0,0.67348447]
[1760148811964,0.00035085,112160.0,112150.0,0.67348447]
[1760148812126,0.00035085,112160.0,112150.0,0.78384462]
[1760148812329,0.00035085,112160.0,112150.0,0.88384461]
[1760148812532,0.00035085,112160.0,112150.0,0.79138446]
[1760148812800,0.00035085,112160.0,112150.0,1.19904182]
[1760148813049,0.0052,112180.0,112160.0,0.17831669]
[1760148813234,0.0052,112180.0,112160.0,0.77346856]
[1760148813438,0.0052,112180.0,112160.0,0.6047547]
[1760148813652,0.0052,112180.0,112160.0,0.68306575]
[1760148813875,0.0052,112180.0,112160.0,0.57346293]
[1760148814294,0.0052,112180.0,112170.0,0.05515189]
[1760148814495,0.0052,112180.0,112170.0,0.06331072]
[1760148814940,0.00987153,112180.0,112170.0,0.13831072]
[1760148815155,0.00987153,112180.0,112170.0,0.16331071]
[1760148815356,0.00987153,112180.0,112170.0,0.20201321]
[1760148815611,0.00987153,112180.0,112170.0,0.20401321]
[1760148816217,0.00987153,112180.0,112170.0,0.15715188]
[1760148816422,0.00987153,112180.0,112170.0,0.20196143]
[1760148816666,0.00987153,112180.0,112170.0,0.20396143]
[1760148817514,0.00987153,112180.0,112170.0,0.23515204]
[1760148817735,0.00987153,112180.0,112170.0,0.0883425]
[1760148817940,0.01740832,112180.0,112170.0,0.18634249]
[1760148818166,0.01273679,112180.0,112170.0,0.0863425]
[1760148818342,0.01273679,112180.0,112170.0,0.18834249]
[1760148818551,0.01273679,112180.0,112170.0,0.18634249]
[1760148818902,0.01273679,112180.0,112170.0,0.18834249]
[1760148820143,0.01273679,112180.0,112170.0,0.0883425]
[1760148820363,0.01273679,112180.0,112170.0,0.11172201]
[1760148820603,0.01273679,112180.0,112170.0,0.23515204]
[1760148820802,0.01273679,112180.0,112170.0,0.20396143]
[1760148821164,0.01273679,112180.0,112170.0,0.20207243]
[1760148821568,0.01273679,112180.0,112170.0,0.20007243]
[1760148821948,0.01273679,112180.0,112170.0,0.17380953]
[1760148822151,0.01273679,112180.0,112170.0,0.17180953]
[1760148822527,0.01273679,112180.0,112170.0,0.17380953]
[1760148822706,0.01273679,112180.0,112170.0,0.42380953]
[1760148823160,0.01273679,112180.0,112170.0,0.45494531]
[1760148823361,0.01273679,112180.0,112170.0,0.48509721]
[1760148823568,0.01273679,112180.0,112170.0,0.43828766]
[1760148823777,0.01273679,112180.0,112170.0,0.23509721]
[1760148823994,0.01273679,112180.0,112170.0,0.05648463]
[1760148824199,0.01273679,112180.0,112170.0,0.34]
[1760148824465,0.01273679,112180.0,112170.0,0.342]
[1760148824671,0.01273679,112180.0,112170.0,0.002]
[1760148825326,0.01273679,112180.0,112160.0,0.0301519]
[1760148825540,0.0052,112180.0,112170.0,0.002]
[1760148825916,0.0052,112180.0,112140.0,0.02337471]
[1760148826244,0.0052,112180.0,112170.0,0.001]
[1760148827409,0.0052,112180.0,112150.0,0.07043184]
[1760148827829,0.0052,112180.0,112140.0,0.02352556]
[1760148828196,0.0052,112180.0,112170.0,0.001]
[1760148828429,0.0052,112180.0,112140.0,0.03030275]
[1760148828774,0.0052,112180.0,112150.0,0.001]
[1760148828975,0.0052,112180.0,112140.0,0.03030275]
[1760148829405,0.0052,112180.0,112170.0,0.001]
[1760148830614,0.0052,112180.0,112150.0,0.0301519]
[1760148830818,0.00695766,112170.0,112150.0,0.0301519]
[1760148831072,0.0052,112180.0,112150.0,0.001]
[1760148831276,0.0052,112180.0,112140.0,0.00015085]
[1760148831701,0.05291,112180.0,112170.0,0.001]
[1760148831909,0.11469,112180.0,112140.0,0.00015085]
[1760148832094,0.11469,112180.0,112150.0,0.001]
[1760148832334,0.21166,112180.0,112150.0,0.001]
[1760148832540,0.0052,112180.0,112140.0,0.00015085]
[1760148832751,0.0052,112180.0,112140.0,0.03030275]
[1760148832958,0.05291,112180.0,112140.0,0.00015085]
[1760148833164,0.0052,112180.0,112140.0,0.00015085]
[1760148834036,0.05291,112180.0,112140.0,0.00015085]
[1760148834883,0.0052,112180.0,112140.0,0.00015085]
[1760148835089,0.34,112170.0,112140.0,0.00015085]
[1760148835960,0.48468,112170.0,112140.0,0.00015085]
[1760148836164,0.38771,112170.0,112140.0,0.00015085]
[1760148836569,0.00579908,112150.0,112140.0,0.00015085]
[1760148836984,0.93778855,112180.0,112140.0,0.00015085]
[1760148838035,0.05291,112180.0,112140.0,0.00015085]
[1760148838245,0.0052,112180.0,112140.0,0.00229082]
[1760148838454,0.0052,112180.0,112140.0,0.02566553]
[1760148838661,0.0052,112180.0,112150.0,0.05352661]
[1760148838860,0.0052,112180.0,112160.0,0.02337471]
[1760148839482,0.0052,112180.0,112170.0,0.02573716]
[1760148839716,0.0052,112180.0,112150.0,0.07696145]
[1760148839940,0.0052,112180.0,112160.0,0.04680955]
[1760148840366,0.0052,112180.0,112170.0,0.0301519]